bitfinex-derivatives/quotes_BTCF0:USTF0_20251023
["timestamp","ask_amount","ask_price","bid_price","bid_amount"]
[1761240170232,0.06712499,110130.0,110120.0,0.4747819]
[1761240170533,0.1905418,110130.0,110120.0,0.63805574]
[1761240170734,0.02444499,110130.0,110120.0,0.63805574]
[1761240171938,0.04571499,110130.0,110120.0,0.63705574]
[1761240172234,0.02444499,110130.0,110120.0,0.63605574]
[1761240172626,0.02444499,110130.0,110120.0,0.63705574]
[1761240172827,0.02444499,110130.0,110120.0,0.63805574]
[1761240173135,0.03263321,110130.0,110120.0,0.63805574]
[1761240174632,0.08153829,110130.0,110120.0,0.63805574]
[1761240176735,0.08157639,110130.0,110120.0,0.63805574]
[1761240177739,0.08157639,110130.0,110120.0,1.03805574]
[1761240178042,0.16068796,110150.0,110140.0,0.1480252]
[1761240178043,0.20444796,110150.0,110140.0,0.1480252]
[1761240178244,0.20444796,110150.0,110140.0,0.4701052]
[1761240178644,0.30260624,110150.0,110140.0,0.37933]
[1761240178844,0.38422822,110150.0,110140.0,0.37933]
[1761240179343,0.38422822,110150.0,110140.0,0.4701054]
[1761240179644,0.38422822,110150.0,110140.0,0.37933]
[1761240179844,0.38422822,110150.0,110140.0,0.47900627]
[1761240180845,0.36797198,110150.0,110140.0,0.47900627]
[1761240183444,0.27719958,110150.0,110140.0,0.47900627]
[1761240183645,0.07016574,110150.0,110140.0,0.64228011]
[1761240184042,0.18225284,110150.0,110140.0,0.47900627]
[1761240184248,0.18225284,110150.0,110140.0,0.64228011]
[1761240184548,0.09148574,110150.0,110140.0,0.64228011]
[1761240184749,0.07016574,110150.0,110140.0,0.64228011]
[1761240185347,0.0048,110150.0,110140.0,0.64228011]
[1761240186344,0.0048,110150.0,110140.0,0.69897006]
[1761240188259,0.0048,110150.0,110140.0,0.66657955]
[1761240188953,0.30260094,110150.0,110140.0,0.38815087]
[1761240189452,0.30260094,110150.0,110140.0,0.05725]
[1761240189658,0.71407094,110150.0,110140.0,0.02172]
[1761240189859,0.31407094,110150.0,110140.0,0.02172]
[1761240190152,0.31407094,110150.0,110140.0,0.04388]
[1761240190751,0.47739174,110150.0,110140.0,0.04388]
[1761240190955,0.47739174,110150.0,110140.0,0.05700066]
[1761240191454,0.47739174,110150.0,110140.0,0.01312066]
[1761240191851,0.87739174,110150.0,110140.0,0.01312066]
[1761240194855,0.87739174,110150.0,110140.0,0.03484066]
[1761240195258,0.87739174,110150.0,110140.0,0.01312066]
[1761240198254,0.29784092,110130.0,110120.0,0.08096944]
[1761240199552,0.29784092,110130.0,110120.0,0.08396944]
[1761240200154,0.29784092,110130.0,110120.0,0.08496944]
[1761240201262,0.29784092,110130.0,110120.0,0.08096944]
[1761240201770,0.29784092,110130.0,110120.0,0.05667]
[1761240209764,0.31052092,110130.0,110120.0,0.04388]
[1761240209965,0.1344918,110120.0,110110.0,0.15602594]
[1761240210165,0.46108644,110120.0,110110.0,0.06522894]
[1761240210375,0.1345,110110.0,110100.0,0.08124914]
[1761240210573,0.29779732,110110.0,110100.0,0.08124914]
[1761240211278,0.29779732,110110.0,110100.0,0.05697]
[1761240211466,0.29779732,110110.0,110100.0,0.05797]
[1761240211973,0.29779732,110110.0,110100.0,0.06097]
[1761240212882,0.29779732,110110.0,110100.0,0.05997]
[1761240213571,0.29779732,110110.0,110100.0,0.05697]
[1761240216477,0.29779732,110110.0,110100.0,0.1477783]
[1761240216778,0.29779732,110110.0,110100.0,0.31107562]
[1761240217678,0.0908,110110.0,110100.0,0.47437294]
[1761240218073,0.0908,110110.0,110100.0,0.79629294]
[1761240218978,0.0908,110110.0,110100.0,0.79729294]
[1761240219177,0.34488732,110120.0,110110.0,0.0907999]
[1761240219377,0.29778912,110120.0,110110.0,0.31072722]
[1761240220083,0.1344918,110120.0,110110.0,0.31072722]
[1761240220379,0.1344918,110120.0,110110.0,0.31272722]
[1761240220776,0.29778912,110120.0,110110.0,0.31272722]
[1761240223072,0.32222936,110120.0,110110.0,0.31272722]
[1761240225180,0.29778912,110120.0,110110.0,0.31272722]
[1761240225775,0.1344918,110120.0,110110.0,0.31272722]
[1761240227284,0.15894521,110120.0,110110.0,0.31272722]
[1761240227670,0.0907916,110120.0,110110.0,0.31272722]
[1761240228082,0.19152378,110130.0,110120.0,0.05663]
[1761240228380,0.19152378,110130.0,110120.0,0.38322464]
[1761240228776,0.19152378,110130.0,110120.0,0.21992732]
[1761240229485,0.19152378,110130.0,110120.0,0.31071902]
[1761240230088,0.19152378,110130.0,110120.0,0.31271902]
[1761240230584,0.05704018,110130.0,110120.0,0.79785634]
[1761240230780,0.02445341,110130.0,110120.0,0.79785634]
[1761240232186,0.05704018,110130.0,110120.0,0.79785634]
[1761240232887,0.14782368,110130.0,110120.0,0.79785634]
[1761240233085,0.02445341,110130.0,110120.0,0.79785634]
[1761240233274,0.11523691,110130.0,110120.0,0.79785634]
[1761240234485,0.02445341,110130.0,110120.0,0.79785634]
[1761240235888,0.02445341,110130.0,110120.0,1.19785634]
[1761240239280,0.05704018,110140.0,110130.0,0.01275]
[1761240239487,0.05704018,110140.0,110130.0,0.31101082]
[1761240239785,0.10205018,110140.0,110130.0,0.31101082]
[1761240239985,0.14781538,110140.0,110130.0,0.31101082]
[1761240240593,0.05704018,110140.0,110130.0,0.31101082]
[1761240240792,0.02445341,110140.0,110130.0,0.31101082]
[1761240240992,0.02445341,110140.0,110130.0,0.47430814]
[1761240241295,0.02445341,110140.0,110130.0,0.87430814]
[1761240241489,0.03738677,110150.0,110140.0,0.47429984]
[1761240241690,0.03738677,110150.0,110140.0,0.79601984]
[1761240242389,0.06018677,110150.0,110140.0,0.79601984]
[1761240242591,0.03738677,110150.0,110140.0,0.79601984]
[1761240243594,0.03738677,110150.0,110140.0,0.80505832]
[1761240243788,0.0048,110150.0,110140.0,0.80505832]
[1761240244190,0.0048,110150.0,110140.0,0.80805832]
[1761240244787,0.0048,110150.0,110140.0,0.80905832]
[1761240247592,0.0048,110150.0,110140.0,1.20905832]
[1761240249797,0.0048,110150.0,110140.0,0.80905832]
[1761240250698,0.0048,110150.0,110140.0,0.64563584]
[1761240251000,0.0048,110150.0,110140.0,0.65892559]
[1761240253900,0.0048,110150.0,110140.0,1.05892559]
[1761240254099,0.07663801,110160.0,110150.0,0.05693]
[1761240254296,0.04881123,110170.0,110160.0,0.1476888]
[1761240254502,0.04881123,110170.0,110160.0,0.64575071]
[1761240254892,0.0228,110180.0,110170.0,0.01275]
[1761240255087,0.02701,110190.0,110180.0,0.0907422]
[1761240255294,0.13143198,110190.0,110180.0,0.64573411]
[1761240255596,0.06999647,110190.0,110180.0,0.48256195]
[1761240255798,0.06999647,110190.0,110180.0,0.64573411]
[1761240255995,0.0048,110190.0,110180.0,0.64573411]
[1761240256194,0.24082695,110210.0,110200.0,0.1476558]
[1761240256400,0.12663198,110210.0,110200.0,0.48250555]
[1761240256801,0.12663198,110210.0,110200.0,0.49176258]
[1761240257001,0.04501,110210.0,110200.0,0.65493474]
[1761240257199,0.0228,110210.0,110200.0,0.65493474]
[1761240257502,0.10742198,110210.0,110200.0,0.65493474]
[1761240258003,0.10742198,110210.0,110200.0,0.65593474]
[1761240258199,0.12963198,110210.0,110200.0,0.65593474]
[1761240258498,0.12963198,110210.0,110200.0,0.49272258]
[1761240258802,0.04801,110210.0,110200.0,0.49272258]
[1761240259189,0.04801,110210.0,110200.0,0.17120258]
[1761240259396,0.04801,110210.0,110200.0,0.49272258]
[1761240259595,0.04801,110210.0,110200.0,0.17120258]
[1761240259799,0.04801,110210.0,110200.0,0.49272258]
[1761240260196,0.1387277,110210.0,110200.0,0.49272258]
[1761240260904,0.04801,110210.0,110200.0,0.49272258]
[1761240261905,0.1387277,110210.0,110200.0,0.49272258]
[1761240263197,0.30189986,110210.0,110200.0,0.17120258]
[1761240263403,0.30189986,110210.0,110200.0,0.15791283]
[1761240263605,0.41609483,110210.0,110200.0,0.47935283]
[1761240265207,0.41609483,110210.0,110200.0,0.15791283]
[1761240265407,0.41609483,110210.0,110200.0,0.47931283]
[1761240266709,0.41609483,110210.0,110200.0,0.49328093]
[1761240267309,0.25292267,110210.0,110200.0,0.49328093]
[1761240268012,0.41609483,110210.0,110200.0,0.17188093]
[1761240268213,0.81609483,110210.0,110200.0,0.001]
[1761240268510,0.65292267,110210.0,110200.0,0.05889]
[1761240268714,0.81609483,110210.0,110200.0,0.05889]
[1761240268910,0.81609483,110210.0,110200.0,0.07286264]
[1761240269116,0.70189986,110210.0,110200.0,0.07286264]
[1761240269616,0.81609483,110210.0,110200.0,0.07286264]
[1761240269817,0.65292267,110210.0,110200.0,0.07286264]
[1761240270118,0.81609483,110210.0,110200.0,0.07286264]
[1761240272830,0.70189986,110210.0,110200.0,0.07286264]
[1761240273020,0.78335115,110210.0,110200.0,0.07286264]
[1761240273725,0.70189986,110210.0,110200.0,0.09486904]
[1761240274330,0.70189986,110210.0,110200.0,0.18559494]
[1761240274526,0.1387277,110210.0,110200.0,0.18559494]
[1761240275122,0.1387277,110210.0,110200.0,0.09486904]
[1761240275633,0.1387277,110210.0,110200.0,0.18559494]
[1761240275827,0.1387277,110210.0,110200.0,0.09486904]
[1761240276532,0.1387277,110210.0,110200.0,0.07286264]
[1761240276932,0.30189986,110210.0,110200.0,0.07286264]
[1761240280232,0.30189986,110210.0,110200.0,0.16358844]
[1761240283130,0.30189986,110210.0,110200.0,0.18552459]
[1761240287138,0.30189986,110210.0,110200.0,0.09479879]
[1761240288237,0.30189986,110210.0,110200.0,0.18552449]
[1761240288433,0.30189986,110210.0,110200.0,0.09479879]
[1761240289232,0.30189986,110210.0,110200.0,0.18552449]
[1761240289839,0.30189986,110210.0,110200.0,0.09479879]
[1761240290539,0.70189986,110210.0,110200.0,0.01497264]
[1761240290726,0.1455139,110190.0,110180.0,0.04416]
[1761240290931,0.30868606,110190.0,110180.0,0.06609196]
[1761240291332,0.30868606,110190.0,110180.0,0.04446196]
[1761240291640,0.30868606,110190.0,110180.0,0.06609196]
[1761240291840,0.30021606,110190.0,110180.0,0.07982196]
[1761240292136,0.30021606,110190.0,110180.0,0.17156416]
[1761240292341,0.1370439,110190.0,110180.0,0.17156416]
[1761240293741,0.1370439,110190.0,110180.0,0.17156406]
[1761240294336,0.1370439,110190.0,110180.0,0.19586257]
[1761240296545,0.1370439,110190.0,110180.0,0.35903473]
[1761240296835,0.1370439,110190.0,110180.0,0.19586257]
[1761240297444,0.30021606,110190.0,110180.0,0.51710257]
[1761240298036,0.1370439,110190.0,110180.0,0.51710257]
[1761240299944,0.1370439,110190.0,110180.0,0.19586257]
[1761240300331,0.1370439,110190.0,110180.0,0.22825308]
[1761240300736,0.30021606,110190.0,110180.0,0.13751098]
[1761240302040,0.30021606,110190.0,110180.0,0.22825298]
[1761240302340,0.30021606,110190.0,110180.0,0.20395447]
[1761240303147,0.30021606,110190.0,110180.0,0.16170917]
[1761240303344,0.30655606,110190.0,110180.0,0.14797114]
[1761240304048,0.62775606,110190.0,110180.0,0.09947444]
[1761240304639,0.62775606,110190.0,110180.0,0.1237622]
[1761240304938,1.02775606,110190.0,110180.0,0.0796022]
[1761240305141,1.02775606,110190.0,110180.0,0.1021822]
[1761240305345,1.02775606,110190.0,110180.0,0.1236822]
[1761240306048,1.02775606,110190.0,110180.0,0.0796022]
[1761240306547,1.19092822,110190.0,110180.0,0.0796022]
[1761240306736,1.19092822,110190.0,110180.0,0.04721972]
[1761240308143,1.02775606,110190.0,110180.0,0.04721972]
[1761240308343,1.02775606,110190.0,110180.0,0.09129972]
[1761240309051,1.02775606,110190.0,110180.0,0.06979972]
[1761240309448,1.19092822,110190.0,110180.0,0.04721972]
[1761240309845,0.79092822,110190.0,110180.0,0.04721972]
[1761240310546,0.62775606,110190.0,110180.0,0.09129972]
[1761240311144,0.79092822,110190.0,110180.0,0.09129972]
[1761240311350,0.79092822,110190.0,110170.0,0.09398918]
[1761240311351,0.149092,110180.0,110170.0,8e-08]
[1761240311651,0.1418667,110150.0,110140.0,0.20441853]
[1761240311851,0.62623886,110150.0,110140.0,0.12675353]
[1761240312248,0.61967886,110150.0,110140.0,0.21752853]
[1761240312447,0.1353067,110150.0,110140.0,0.38070069]
[1761240312645,0.1140167,110150.0,110140.0,0.38070069]
[1761240312867,0.0907667,110150.0,110140.0,0.54395695]
[1761240313045,0.0907667,110150.0,110140.0,0.55288131]
[1761240313245,0.0907667,110150.0,110140.0,0.55588131]
[1761240313746,0.0907667,110150.0,110140.0,0.55688131]
[1761240314252,0.0907667,110150.0,110140.0,0.55588131]
[1761240314554,0.1353067,110150.0,110140.0,0.55588131]
[1761240314753,0.29852091,110150.0,110140.0,0.3896671]
[1761240314954,0.29852091,110150.0,110140.0,0.16442873]
[1761240315249,0.29852091,110150.0,110140.0,0.32764294]
[1761240315958,0.29852091,110150.0,110140.0,0.32664294]
[1761240316954,0.29952091,110150.0,110140.0,0.16342873]
[1761240317154,0.29952091,110150.0,110140.0,0.07265383]
[1761240317454,0.47420512,110150.0,110140.0,0.00653947]
[1761240318345,0.87420512,110150.0,110140.0,1e-08]
[1761240321351,0.88332286,110150.0,110140.0,1e-08]
[1761240325049,1.04653707,110150.0,110140.0,1e-08]
[1761240330262,0.1397514,110120.0,110110.0,0.04412]
[1761240330464,0.78741982,110120.0,110110.0,0.04412]
[1761240331163,0.1331914,110120.0,110110.0,0.31178381]
[1761240331356,0.1331914,110120.0,110110.0,0.31478381]
[1761240331557,0.0424,110120.0,110110.0,0.31678381]
[1761240331862,0.29639261,110140.0,110130.0,0.1485531]
[1761240332056,0.61763261,110140.0,110130.0,0.05777]
[1761240332360,0.78740682,110140.0,110130.0,0.05777]
[1761240332564,0.78740682,110140.0,110130.0,0.04412]
[1761240333763,0.78940682,110140.0,110130.0,0.04412]
[1761240334255,0.78284682,110140.0,110130.0,0.05777]
[1761240334862,0.78940682,110140.0,110130.0,0.04412]
[1761240335370,0.78284682,110140.0,110130.0,0.05777]
[1761240335665,0.78284682,110140.0,110130.0,0.1485531]
[1761240335867,0.78284682,110140.0,110130.0,0.06694202]
[1761240337758,0.78284682,110140.0,110130.0,0.15772512]
[1761240338267,0.61963261,110140.0,110130.0,0.06694202]
[1761240338467,0.61963261,110140.0,110130.0,0.05777]
[1761240338761,0.78284682,110140.0,110130.0,0.05777]
[1761240339363,0.1331831,110130.0,110120.0,0.1485585]
[1761240339568,0.29639731,110130.0,110120.0,0.15776425]
[1761240340467,0.29639731,110130.0,110120.0,0.15976425]
[1761240340667,0.29739731,110130.0,110120.0,0.15976425]
[1761240341469,0.29739731,110130.0,110120.0,0.19213149]
[1761240342064,0.29739731,110130.0,110120.0,0.3553457]
[1761240343764,0.20661421,110130.0,110120.0,0.3553457]
[1761240343960,0.1331675,110150.0,110140.0,0.1485448]
[1761240344170,0.1331675,110150.0,110140.0,0.31175901]
[1761240344373,0.1331675,110150.0,110140.0,0.34415082]
[1761240344668,0.29637481,110160.0,110150.0,0.0907666]
[1761240344872,0.29637481,110160.0,110150.0,0.31175081]
[1761240345061,0.29637481,110160.0,110150.0,0.1485366]
[1761240345269,0.29637481,110160.0,110150.0,0.05777]
[1761240345463,0.45958902,110160.0,110150.0,0.05777]
[1761240345669,0.1331665,110150.0,110140.0,0.05877]
[1761240345868,0.29638071,110150.0,110140.0,0.1495448]
[1761240346169,0.29638071,110150.0,110140.0,0.31175901]
[1761240346472,0.29638071,110150.0,110140.0,0.1485448]
[1761240346867,0.29738071,110150.0,110140.0,0.05777]
[1761240347874,0.29738071,110150.0,110140.0,0.05977]
[1761240348176,0.31119071,110150.0,110140.0,0.04612]
[1761240348377,0.79556492,110150.0,110140.0,0.002]
[1761240348571,1.22003587,110150.0,110140.0,0.002]
[1761240349367,1.22003587,110150.0,110140.0,0.02479]
[1761240349979,1.22003587,110150.0,110140.0,0.002]
[1761240350977,1.25266381,110150.0,110140.0,0.002]
[1761240352868,1.22003587,110150.0,110140.0,0.002]
[1761240353669,1.25266381,110150.0,110140.0,0.002]
[1761240355880,1.25266381,110150.0,110140.0,0.02358]
[1761240357082,0.85266381,110150.0,110140.0,0.002]
[1761240357284,0.148243,110130.0,110120.0,0.12510693]
[1761240357582,0.79579142,110130.0,110120.0,0.07672181]
[1761240357773,0.63257721,110130.0,110120.0,0.07672181]
[1761240358372,0.63257721,110130.0,110120.0,0.03739181]
[1761240358581,0.79579142,110130.0,110120.0,0.03739181]
[1761240359375,0.79579142,110130.0,110120.0,0.03539181]
[1761240359882,0.79579142,110130.0,110120.0,0.03239181]
[1761240360881,0.8048642,110130.0,110120.0,0.03239181]
[1761240361878,0.79579142,110130.0,110120.0,0.03239181]
[1761240362268,0.63257721,110130.0,110120.0,0.04433]
[1761240362468,0.0907914,110120.0,110110.0,0.13807693]
[1761240362681,0.46086982,110120.0,110110.0,0.13807693]
[1761240362876,0.47233982,110120.0,110110.0,0.13807693]
[1761240363682,0.47233982,110120.0,110110.0,0.14007693]
[1761240365484,0.47233982,110120.0,110110.0,0.23087643]
[1761240366280,0.61877561,110120.0,110110.0,0.39409064]
[1761240366473,0.4335514,110120.0,110110.0,0.36169883]
[1761240366681,0.1124314,110120.0,110110.0,0.36169883]
[1761240367486,0.1344414,110120.0,110110.0,0.36169883]
[1761240369282,0.1124314,110120.0,110110.0,0.36169883]
[1761240369485,0.0907914,110120.0,110110.0,0.36169883]
[1761240369686,0.57511721,110130.0,110120.0,0.1480914]
[1761240369687,0.134433,110130.0,110120.0,0.1480914]
[1761240369985,0.090783,110130.0,110120.0,0.55534254]
[1761240370984,0.1344302,110140.0,110130.0,0.148083]
[1761240371287,0.1344302,110140.0,110130.0,0.34373481]
[1761240371989,0.29764441,110140.0,110130.0,0.36805659]
[1761240372190,0.29764441,110140.0,110130.0,0.34373481]
[1761240372388,0.29764441,110140.0,110130.0,0.1805206]
[1761240372590,0.29764441,110140.0,110130.0,0.34573481]
[1761240372897,0.29764441,110140.0,110130.0,0.1825206]
[1761240373389,0.29764441,110140.0,110130.0,0.34573481]
[1761240374682,0.1344302,110140.0,110130.0,0.1825206]
[1761240374885,0.1344302,110140.0,110130.0,0.20684793]
[1761240375384,0.1344302,110140.0,110130.0,0.37011935]
[1761240375587,0.1124202,110140.0,110130.0,0.37011935]
[1761240376088,0.1124202,110140.0,110130.0,0.20684793]
[1761240376290,0.1124202,110140.0,110130.0,0.1825206]
[1761240377690,0.1344302,110140.0,110130.0,0.1825206]
[1761240378191,0.1124202,110140.0,110130.0,0.1825206]
[1761240378583,0.1344302,110140.0,110130.0,0.1825206]
[1761240379085,0.15888745,110150.0,110140.0,0.0573]
[1761240379294,0.1344165,110150.0,110140.0,0.20485286]
[1761240379782,0.1344165,110150.0,110140.0,0.21412195]
[1761240379980,0.1344165,110150.0,110140.0,0.12334725]
[1761240380186,0.1344165,110150.0,110140.0,0.02434056]
[1761240380187,0.31149792,110150.0,110140.0,0.02434056]
[1761240380407,0.1344247,110140.0,110130.0,0.40468056]
[1761240380693,0.29769612,110140.0,110130.0,0.40468056]
[1761240380987,0.29769612,110140.0,110130.0,0.08364056]
[1761240381185,0.29769612,110140.0,110130.0,0.08164056]
[1761240381580,0.64976707,110140.0,110130.0,0.04433]
[1761240381784,0.68239501,110140.0,110130.0,0.02275]
[1761240381987,0.1483213,110120.0,110100.0,0.07428928]
[1761240382294,0.31160092,110110.0,110100.0,0.01795445]
[1761240382496,0.31160092,110110.0,110100.0,0.06228445]
[1761240383188,0.3360905,110110.0,110100.0,0.06328445]
[1761240383394,0.1483295,110110.0,110100.0,0.04987112]
[1761240383590,0.31160092,110110.0,110100.0,0.04987112]
[1761240384186,0.31160092,110110.0,110100.0,0.05287112]
[1761240384388,0.63264092,110110.0,110100.0,0.05287112]
[1761240384793,0.4693695,110110.0,110100.0,0.04987112]
[1761240384993,0.4693695,110110.0,110100.0,0.05187112]
[1761240389102,0.4693695,110110.0,110100.0,0.14267892]
[1761240390206,0.4693695,110110.0,110100.0,0.06497112]
[1761240390207,0.4694095,110110.0,110100.0,0.06497112]
[1761240390396,0.4694095,110110.0,110100.0,0.15577892]
[1761240391598,0.1344495,110110.0,110100.0,0.15577892]
[1761240392008,0.1481895,110110.0,110100.0,0.05187112]
[1761240392597,0.49054751,110110.0,110100.0,0.05391112]
[1761240393898,0.49054751,110110.0,110100.0,0.00754112]
[1761240395105,0.49054751,110110.0,110100.0,0.03059112]
[1761240395301,0.49054751,110110.0,110100.0,0.00754112]
[1761240396500,0.1495578,110100.0,110090.0,8.454e-05]
[1761240396696,0.81299581,110100.0,110090.0,8.454e-05]
[1761240397505,0.4706378,110100.0,110090.0,8.454e-05]
[1761240397904,0.4706378,110100.0,110090.0,0.04945454]
[1761240398403,0.4706378,110100.0,110090.0,0.05345454]
[1761240398903,0.4706378,110100.0,110090.0,0.03013454]
[1761240399492,0.81299581,110100.0,110090.0,0.03013454]
[1761240400008,0.4706378,110100.0,110090.0,0.00708454]
[1761240400507,0.4706378,110100.0,110090.0,0.05345454]
[1761240400993,0.4706378,110100.0,110090.0,0.03013454]
[1761240401198,0.4706378,110100.0,110090.0,0.00708454]
[1761240402306,0.81299581,110100.0,110090.0,0.00708454]
[1761240402608,0.4706378,110100.0,110090.0,0.00708454]
[1761240402912,0.81299581,110100.0,110090.0,0.00708454]
[1761240403201,0.4706378,110100.0,110090.0,0.05345454]
[1761240403402,0.1495578,110100.0,110090.0,0.15737054]
[1761240403608,0.4568978,110100.0,110090.0,0.15737054]
[1761240404508,0.1495578,110100.0,110090.0,0.15737054]
[1761240404806,0.1495578,110100.0,110090.0,0.05345454]
[1761240405007,0.4706378,110100.0,110090.0,0.05345454]
[1761240405205,0.4706378,110100.0,110090.0,0.14427054]
[1761240405410,0.4706378,110100.0,110090.0,0.05345454]
[1761240406212,0.63403669,110100.0,110090.0,0.05345454]
[1761240406412,0.63403669,110100.0,110090.0,0.0777951]
[1761240406616,0.63403669,110100.0,110090.0,0.1686111]
[1761240408414,0.63403669,110100.0,110090.0,0.0777951]
[1761240409416,0.63403669,110100.0,110090.0,0.1102327]
[1761240409718,0.63403669,110100.0,110090.0,0.2141487]
[1761240410606,0.4706378,110100.0,110090.0,0.2141487]
[1761240411417,0.4706378,110100.0,110090.0,0.23819326]
[1761240411910,0.4706378,110100.0,110090.0,0.18980814]
[1761240412315,0.4706378,110100.0,110090.0,0.18980804]
[1761240412715,0.4706378,110100.0,110090.0,0.18880804]
[1761240413118,0.49512738,110100.0,110090.0,0.18075447]
[1761240413417,0.4568578,110100.0,110090.0,0.18075447]
[1761240413915,0.4568578,110100.0,110090.0,0.17975447]
[1761240414111,0.1358178,110100.0,110090.0,0.77559096]
[1761240414416,0.1358178,110100.0,110090.0,0.77259096]
[1761240414617,0.1358178,110100.0,110090.0,0.77559096]
[1761240414816,0.1127078,110100.0,110090.0,0.77559096]
[1761240415110,0.1340678,110100.0,110090.0,0.77359096]
[1761240415418,0.1340678,110100.0,110090.0,0.77559096]
[1761240416315,0.04326,110100.0,110090.0,0.77559096]
[1761240416718,0.06777958,110110.0,110100.0,0.05875]
[1761240417016,0.15858448,110110.0,110100.0,0.3373315]
[1761240418023,0.06777958,110110.0,110100.0,0.3373315]
[1761240418223,0.06777958,110110.0,110100.0,0.3413315]
[1761240418422,0.15857918,110110.0,110100.0,0.17793261]
[1761240419823,0.15857918,110110.0,110100.0,0.3413315]
[1761240420124,0.06777958,110110.0,110100.0,0.3413315]
[1761240420321,0.19122365,110120.0,110110.0,0.0907996]
[1761240420522,0.19122365,110120.0,110110.0,0.1495496]
[1761240421624,0.10143235,110120.0,110110.0,0.1495496]
[1761240421825,0.07477958,110120.0,110110.0,1.0583234]
[1761240423124,0.05341958,110120.0,110110.0,1.0583234]
[1761240423824,0.03148958,110120.0,110110.0,1.0583234]
[1761240426226,0.03148958,110120.0,110110.0,1.03394849]
[1761240426421,0.007,110120.0,110110.0,1.0583234]
[1761240427522,0.02448958,110130.0,110120.0,0.1039012]
[1761240427725,0.05714235,110140.0,110130.0,0.1495329]
[1761240428025,0.05714235,110140.0,110130.0,0.63389179]
[1761240428227,0.10043235,110140.0,110130.0,0.63389179]
[1761240428627,0.07907235,110140.0,110130.0,0.63389179]
[1761240429024,0.07907235,110140.0,110130.0,0.64285632]
[1761240429223,0.10043235,110140.0,110130.0,0.64285632]
[1761240429420,0.19120475,110140.0,110130.0,0.64285632]
[1761240429616,0.19120475,110140.0,110130.0,0.48345743]
[1761240429818,0.19120475,110140.0,110130.0,0.02689]
[1761240429819,0.34292406,110140.0,110130.0,0.02689]
[1761240430022,0.39190322,110140.0,110130.0,0.004]
[1761240430225,0.35925045,110140.0,110130.0,0.004]
[1761240430526,0.35925045,110140.0,110130.0,0.04964]
[1761240430931,0.35925045,110140.0,110130.0,0.05164]
[1761240431532,0.35925045,110140.0,110130.0,0.06048127]
[1761240433332,0.35925045,110140.0,110130.0,0.15126197]
[1761240433736,0.09226916,110140.0,110130.0,0.16437197]
[1761240433937,0.03263189,110140.0,110130.0,0.72777086]
[1761240434141,0.07903208,110140.0,110130.0,0.72777086]
[1761240434336,0.10039208,110140.0,110130.0,0.72777086]
[1761240434639,0.14787448,110140.0,110130.0,0.72777086]
[1761240434848,0.19116448,110140.0,110130.0,0.16437197]
[1761240435048,0.05710208,110140.0,110130.0,0.72777086]
[1761240436144,0.19116448,110140.0,110130.0,0.72777086]
[1761240436745,0.19116448,110140.0,110130.0,0.7276179]
[1761240438738,0.1340624,110140.0,110130.0,0.75199281]
[1761240439946,0.30210593,110150.0,110140.0,0.1495224]
[1761240440146,0.30210593,110150.0,110140.0,0.31276833]
[1761240440440,0.30210593,110150.0,110140.0,0.63364833]
[1761240440945,0.13886,110150.0,110140.0,0.63364833]
[1761240441336,0.14286,110150.0,110140.0,0.63364833]
[1761240442647,0.30210593,110150.0,110140.0,0.63764833]
[1761240442846,0.13886,110150.0,110140.0,0.63964833]
[1761240444845,0.31579593,110150.0,110140.0,0.63964833]
[1761240446048,0.31579593,110150.0,110140.0,0.37252]
[1761240446248,0.31579593,110150.0,110140.0,0.1424124]
[1761240446952,0.15255,110150.0,110140.0,0.006]
[1761240447246,0.1478225,110140.0,110130.0,0.35229127]
[1761240447449,0.47431436,110140.0,110130.0,0.05416127]
[1761240447642,0.47431436,110140.0,110130.0,0.14494197]
[1761240448247,0.47431436,110140.0,110130.0,0.05416127]
[1761240448745,0.47431436,110140.0,110130.0,0.14494197]
[1761240449050,0.31106843,110140.0,110130.0,0.14494197]
[1761240449245,0.31106843,110140.0,110130.0,0.05816127]
[1761240449648,0.31106843,110140.0,110130.0,0.14894197]
[1761240450044,0.31106843,110140.0,110130.0,0.15094197]
[1761240452048,0.04417,110140.0,110130.0,0.3276379]
[1761240452352,0.02102,110140.0,110130.0,0.35191669]
[1761240452946,0.1117924,110140.0,110130.0,0.35191669]
[1761240453143,0.02102,110140.0,110130.0,0.3276379]
[1761240453343,0.1117924,110140.0,110130.0,0.3276379]
[1761240454159,0.1344124,110140.0,110130.0,0.3276379]
[1761240454450,0.47352426,110140.0,110130.0,0.05132]
[1761240454650,0.47352426,110140.0,110130.0,0.006]
[1761240454651,0.49795744,110140.0,110130.0,0.006]
[1761240455952,0.53058933,110140.0,110130.0,0.006]
[1761240458654,0.10070507,110140.0,110130.0,0.31785643]
[1761240458859,0.15884548,110140.0,110130.0,0.31785643]
[1761240459160,0.04364,110140.0,110130.0,0.31785643]
[1761240459356,0.04364,110140.0,110130.0,0.63865643]
[1761240459357,0.02102,110140.0,110130.0,0.63865643]
[1761240459557,0.02102,110140.0,110130.0,0.80190236]
[1761240459854,0.16560308,110150.0,110140.0,0.1486023]
[1761240460055,0.16560308,110150.0,110140.0,0.31184823]
[1761240460253,0.19823497,110150.0,110140.0,0.31184823]
[1761240460456,0.3614809,110150.0,110140.0,0.31184823]
[1761240460755,0.10746507,110150.0,110140.0,0.1486023]
[1761240460958,0.07483318,110150.0,110140.0,0.35263421]
[1761240461257,0.16559728,110150.0,110140.0,0.1486023]
[1761240461567,0.17821728,110150.0,110140.0,0.1486023]
[1761240461754,0.18221728,110150.0,110140.0,0.1486023]
[1761240462164,0.21484917,110150.0,110140.0,0.1486023]
[1761240462562,0.18221728,110150.0,110140.0,0.1486023]
[1761240462750,0.07483318,110150.0,110140.0,0.1506023]
[1761240462956,0.16559728,110150.0,110140.0,0.1546023]
[1761240463164,0.1411641,110150.0,110140.0,0.1546023]
[1761240463567,0.1411641,110150.0,110140.0,0.17888109]
[1761240464961,0.0504,110150.0,110140.0,0.17888109]
[1761240465162,0.1411641,110150.0,110140.0,0.17888109]
[1761240465874,0.1537841,110150.0,110140.0,0.17888109]
[1761240466074,0.1411641,110150.0,110140.0,0.17888109]
[1761240469071,0.17821728,110150.0,110140.0,0.17888109]
[1761240469670,0.17821728,110150.0,110140.0,0.16543109]
[1761240471269,0.17821728,110150.0,110140.0,0.1411523]
[1761240473072,0.1537841,110150.0,110140.0,0.16543109]
[1761240473274,0.17821728,110150.0,110140.0,0.17803109]
[1761240474268,0.1537841,110150.0,110140.0,0.17803109]
[1761240474471,0.0048,110150.0,110140.0,0.17803109]
[1761240474671,0.0048,110150.0,110140.0,0.8145006]
[1761240474867,0.0048,110150.0,110140.0,0.79022181]
[1761240475172,0.05005,110150.0,110140.0,0.39022181]
[1761240475372,0.140814,110150.0,110140.0,0.41454588]
[1761240475577,0.140814,110150.0,110140.0,0.21051397]
[1761240476275,0.140814,110150.0,110140.0,0.1861899]
[1761240478075,0.153734,110150.0,110140.0,0.1861899]
[1761240478274,0.153734,110150.0,110140.0,0.51863564]